[Event "Masters Tournament (MTO)"]
[Site "Biel, Switzerland"]
[Date "2026.07.15"]
[Round "3.34"]
[White "Kunz, Andre"]
[Black "Scherler, Julius"]
[Result "1/2-1/2"]
[TimeControl "100+30+30sec/move"]
[WhiteTitle "-"]
[BlackTitle "-"]
[WhiteFideId "24623652"]
[BlackFideId "1337947"]
[WhiteElo "2116"]
[BlackElo "1941"]

1. e4 {[%clk 01:40:58]} {[%emt 00:00:01]} c6 {[%clk 01:40:39]} {[%emt
00:00:21]} 2. d4 {[%clk 01:41:22]} {[%emt 00:00:06]} d5 {[%clk 01:40:52]}
{[%emt 00:00:17]} 3. Nd2 {[%clk 01:41:46]} {[%emt 00:00:06]} dxe4 {[%clk
01:40:52]} {[%emt 00:00:29]} 4. Nxe4 {[%clk 01:42:13]} {[%emt 00:00:03]} Nf6
{[%clk 01:40:54]} {[%emt 00:00:27]} 5. Nxf6+ {[%clk 01:42:34]} {[%emt
00:00:11]} exf6 {[%clk 01:41:16]} {[%emt 00:00:08]} 6. Be3 {[%clk 01:42:25]}
{[%emt 00:00:40]} Bd6 {[%clk 01:41:21]} {[%emt 00:00:23]} 7. Bd3 {[%clk
01:42:24]} {[%emt 00:00:32]} Bf5 {[%clk 01:41:09]} {[%emt 00:00:41]} 8. Ne2
{[%clk 01:41:43]} {[%emt 00:01:12]} O-O {[%clk 01:37:48]} {[%emt 00:03:51]} 9.
O-O {[%clk 01:36:27]} {[%emt 00:05:46]} Bg6 {[%clk 01:37:00]} {[%emt 00:01:18]}
10. c4 {[%clk 01:35:39]} {[%emt 00:01:19]} Re8 {[%clk 01:34:55]} {[%emt
00:02:34]} 11. Re1 {[%clk 01:32:09]} {[%emt 00:04:00]} Nd7 {[%clk 01:33:04]}
{[%emt 00:02:20]} 12. Bxg6 {[%clk 01:31:29]} {[%emt 00:01:11]} hxg6 {[%clk
01:33:04]} {[%emt 00:00:30]} 13. Qb3 {[%clk 01:30:08]} {[%emt 00:01:51]} Qc7
{[%clk 01:23:46]} {[%emt 00:09:47]} 14. g3 {[%clk 01:29:38]} {[%emt 00:01:00]}
g5 {[%clk 01:15:18]} {[%emt 00:08:59]} 15. Nc3 {[%clk 01:24:50]} {[%emt
00:05:19]} g6 {[%clk 01:00:05]} {[%emt 00:15:42]} 16. Rad1 {[%clk 01:20:39]}
{[%emt 00:04:40]} Kg7 {[%clk 00:38:27]} {[%emt 00:22:08]} 17. c5 {[%clk
01:14:34]} {[%emt 00:06:35]} Bf8 {[%clk 00:30:28]} {[%emt 00:08:29]} 18. Qc2
{[%clk 01:11:28]} {[%emt 00:03:37]} b6 {[%clk 00:24:52]} {[%emt 00:06:06]} 19.
b4 {[%clk 01:05:37]} {[%emt 00:06:21]} a5 {[%clk 00:25:07]} {[%emt 00:00:15]}
20. a3 {[%clk 00:52:37]} {[%emt 00:13:31]} axb4 {[%clk 00:25:02]} {[%emt
00:00:34]} 21. axb4 {[%clk 00:53:05]} {[%emt 00:00:02]} bxc5 {[%clk 00:23:22]}
{[%emt 00:02:10]} 22. bxc5 {[%clk 00:48:22]} {[%emt 00:05:13]} Ra3 {[%clk
00:18:40]} {[%emt 00:05:11]} 23. Ra1 {[%clk 00:34:02]} {[%emt 00:14:51]} Qa5
{[%clk 00:15:57]} {[%emt 00:03:11]} 24. Qb2 {[%clk 00:32:58]} {[%emt 00:01:35]}
Ra8 {[%clk 00:15:36]} {[%emt 00:00:52]} 25. Rxa3 {[%clk 00:33:21]} {[%emt
00:00:07]} Qxa3 {[%clk 00:16:05]} 26. Rb1 {[%clk 00:33:18]} {[%emt 00:00:33]}
Qa5 {[%clk 00:15:00]} {[%emt 00:01:34]} 27. Qb4 {[%clk 00:30:59]} {[%emt
00:02:50]} Qd8 {[%clk 00:12:25]} {[%emt 00:03:04]} 28. Qb7 {[%clk 00:28:41]}
{[%emt 00:02:48]} Rc8 {[%clk 00:12:29]} {[%emt 00:00:26]} 29. Ra1 {[%clk
00:27:39]} {[%emt 00:01:32]} Rc7 {[%clk 00:12:34]} {[%emt 00:00:26]} 30. Qb4
{[%clk 00:25:23]} {[%emt 00:02:45]} Be7 {[%clk 00:10:01]} {[%emt 00:03:04]} 31.
Ra6 {[%clk 00:25:13]} {[%emt 00:00:40]} Nf8 {[%clk 00:09:35]} {[%emt 00:00:56]}
32. Qa4 {[%clk 00:24:34]} {[%emt 00:01:09]} Ne6 {[%clk 00:07:36]} {[%emt
00:02:28]} 33. Qc4 {[%clk 00:17:30]} {[%emt 00:07:35]} Qd7 {[%clk 00:06:45]}
{[%emt 00:01:21]} 34. Na4 {[%clk 00:17:28]} {[%emt 00:00:33]} Ra7 {[%clk
00:05:22]} {[%emt 00:01:51]} 35. Nb6 {[%clk 00:17:17]} {[%emt 00:00:41]} Qb7
{[%clk 00:05:40]} {[%emt 00:00:12]} 36. Rxa7 {[%clk 00:16:18]} {[%emt
00:01:30]} Qxa7 {[%clk 00:06:09]} {[%emt 00:00:02]} 37. Kg2 {[%clk 00:16:20]}
{[%emt 00:00:26]} f5 {[%clk 00:03:17]} {[%emt 00:03:22]} 38. d5 {[%clk
00:16:12]} {[%emt 00:00:39]} cxd5 {[%clk 00:03:07]} {[%emt 00:00:40]} 39. Qxd5
{[%clk 00:16:29]} {[%emt 00:00:12]} Qc7 {[%clk 00:02:14]} {[%emt 00:01:23]} 40.
Nd7 {[%clk 00:12:59]} {[%emt 00:04:01]} Bf6 {[%clk 00:00:36]} {[%emt 00:02:07]}
41. c6 {[%clk 00:09:27]} {[%emt 00:04:02]} g4 {[%clk 00:11:08]} {[%emt
00:19:58]} 42. Bb6 {[%clk 00:33:16]} {[%emt 00:06:42]} Qc8 {[%clk 00:10:13]}
{[%emt 00:01:25]} 43. h3 {[%clk 00:13:59]} {[%emt 00:19:47]} gxh3+ {[%clk
00:09:23]} {[%emt 00:01:20]} 44. Kxh3 {[%clk 00:14:19]} {[%emt 00:00:09]} f4
{[%clk 00:08:47]} {[%emt 00:01:06]} 45. Kg2 {[%clk 00:13:10]} {[%emt 00:01:40]}
fxg3 {[%clk 00:07:04]} {[%emt 00:02:13]} 46. fxg3 {[%clk 00:12:22]} {[%emt
00:01:18]} Qa8 {[%clk 00:05:06]} {[%emt 00:02:28]} 47. Be3 {[%clk 00:09:02]}
{[%emt 00:03:49]} Nd8 {[%clk 00:01:44]} {[%emt 00:03:52]} 48. Nxf6 {[%clk
00:09:13]} {[%emt 00:00:19]} Qxc6 {[%clk 00:00:52]} {[%emt 00:01:22]} 49. Qxc6
{[%clk 00:08:33]} {[%emt 00:01:10]} Nxc6 {[%clk 00:01:21]} {[%emt 00:00:01]} 50.
Bg5 {[%clk 00:08:27]} {[%emt 00:00:36]} Ne5 {[%clk 00:01:23]} {[%emt 00:00:28]}
51. Kf2 {[%clk 00:08:01]} {[%emt 00:00:55]} Nd3+ {[%clk 00:01:20]} {[%emt
00:00:34]} 52. Ke3 {[%clk 00:08:12]} {[%emt 00:00:19]} Nc5 {[%clk 00:01:39]}
{[%emt 00:00:10]} 53. Ne4 {[%clk 00:07:14]} {[%emt 00:01:30]} Nd7 {[%clk
00:01:08]} {[%emt 00:01:01]} 54. Kd4 {[%clk 00:05:04]} {[%emt 00:02:39]} f6
{[%clk 00:01:20]} {[%emt 00:00:17]} 55. Bf4 {[%clk 00:05:12]} {[%emt 00:00:22]}
g5 {[%clk 00:00:37]} {[%emt 00:01:14]} 56. Bd2 {[%clk 00:05:14]} {[%emt
00:00:28]} Kg6 {[%clk 00:00:52]} {[%emt 00:00:15]} 57. Kd5 {[%clk 00:05:16]}
{[%emt 00:00:29]} f5 {[%clk 00:00:57]} {[%emt 00:00:24]} 58. Nxg5 {[%clk
00:05:18]} {[%emt 00:00:28]} Nf6+ {[%clk 00:01:23]} {[%emt 00:00:05]} 59. Ke5
{[%clk 00:03:49]} {[%emt 00:01:58]} Nh5 {[%clk 00:01:34]} {[%emt 00:00:18]} 60.
Nf3 {[%clk 00:03:17]} {[%emt 00:01:03]} Nxg3 {[%clk 00:01:51]} {[%emt
00:00:14]} 61. Be1 {[%clk 00:03:32]} {[%emt 00:00:15]} Ne4 {[%clk 00:00:33]}
{[%emt 00:01:47]} 62. Nh4+ {[%clk 00:04:01]} {[%emt 00:00:01]} Kg5 {[%clk
00:00:37]} {[%emt 00:00:26]} 63. Nxf5 {[%clk 00:04:29]} {[%emt 00:00:02]} Nc5
{[%clk 00:00:38]} {[%emt 00:00:30]} 64. Bd2 {[%clk 00:04:10]} {[%emt 00:00:49]}
Kg4 {[%clk 00:00:43]} {[%emt 00:00:24]} 65. Nd6 {[%clk 00:02:42]} {[%emt
00:01:58]} Nd3+ {[%clk 00:00:37]} {[%emt 00:00:37]} 66. Ke4 {[%clk 00:03:06]}
{[%emt 00:00:05]} Nc5+ {[%clk 00:00:58]} {[%emt 00:00:09]} 67. Kd5 {[%clk
00:02:36]} {[%emt 00:01:00]} Nd3 {[%clk 00:01:12]} {[%emt 00:00:16]} 68. Nc4
{[%clk 00:02:51]} {[%emt 00:00:15]} Kf3 {[%clk 00:00:39]} {[%emt 00:01:03]} 69.
Kd4 {[%clk 00:03:15]} {[%emt 00:00:06]} Ke2 {[%clk 00:00:43]} {[%emt 00:00:26]}
70. Bg5 {[%clk 00:03:20]} {[%emt 00:00:24]} Nb4 {[%clk 00:00:44]} {[%emt
00:00:30]} 71. Ne5 {[%clk 00:03:45]} {[%emt 00:00:06]} Nc2+ {[%clk 00:01:07]}
{[%emt 00:00:07]} 72. Ke4 {[%clk 00:03:52]} {[%emt 00:00:23]} Nb4 {[%clk
00:00:43]} {[%emt 00:00:54]} 73. Nf3 {[%clk 00:04:09]} {[%emt 00:00:13]} Nc2
{[%clk 00:00:40]} {[%emt 00:00:33]} 74. Bh6 {[%clk 00:04:37]} {[%emt 00:00:02]}
Kf2 {[%clk 00:00:37]} {[%emt 00:00:33]} 75. Ne5 {[%clk 00:04:34]} {[%emt
00:00:33]} Ke2 {[%clk 00:00:56]} {[%emt 00:00:10]} 76. Nd3 {[%clk 00:05:00]}
{[%emt 00:00:04]} Kd1 {[%clk 00:00:52]} {[%emt 00:00:35]} 77. Bg5 {[%clk
00:04:01]} {[%emt 00:01:29]} Ke2 {[%clk 00:01:12]} {[%emt 00:00:08]} 78. Nc1+
{[%clk 00:04:23]} {[%emt 00:00:10]} Kd1 {[%clk 00:01:28]} {[%emt 00:00:14]} 79.
Kd3 {[%clk 00:04:40]} {[%emt 00:00:13]} Ne1+ {[%clk 00:01:03]} {[%emt
00:00:53]} 80. Kc3 {[%clk 00:05:08]} {[%emt 00:00:03]} Nf3 {[%clk 00:01:11]}
{[%emt 00:00:21]} 81. Be3 {[%clk 00:05:17]} {[%emt 00:00:21]} Ne1 {[%clk
00:01:09]} {[%emt 00:00:32]} 82. Bf4 {[%clk 00:05:33]} {[%emt 00:00:16]} Ng2
{[%clk 00:01:21]} {[%emt 00:00:17]} 83. Bd2 {[%clk 00:05:54]} {[%emt 00:00:09]}
Ne1 {[%clk 00:01:09]} {[%emt 00:00:42]} 84. Bh6 {[%clk 00:05:52]} {[%emt
00:00:32]} Nf3 {[%clk 00:01:12]} {[%emt 00:00:27]} 85. Nd3 {[%clk 00:05:52]}
{[%emt 00:00:30]} Ke2 {[%clk 00:01:27]} {[%emt 00:00:15]} 86. Nf4+ {[%clk
00:06:19]} {[%emt 00:00:03]} Ke3 {[%clk 00:01:14]} {[%emt 00:00:43]} 87. Nd5
{[%clk 00:05:23]} {[%emt 00:01:26]} Ke4 {[%clk 00:01:35]} {[%emt 00:00:09]} 88.
Kc4 {[%clk 00:05:43]} {[%emt 00:00:11]} Ne5+ {[%clk 00:01:22]} {[%emt
00:00:42]} 89. Kc5 {[%clk 00:06:11]} {[%emt 00:00:02]} Nd3+ {[%clk 00:01:23]}
{[%emt 00:00:29]} 90. Kd6 {[%clk 00:06:36]} {[%emt 00:00:06]} Kd4 {[%clk
00:01:21]} {[%emt 00:00:32]} 91. Bg7+ {[%clk 00:07:02]} {[%emt 00:00:03]} Ke4
{[%clk 00:01:43]} {[%emt 00:00:08]} 92. Nc3+ {[%clk 00:07:22]} {[%emt
00:00:11]} Ke3 {[%clk 00:01:39]} {[%emt 00:00:33]} 93. Kd5 {[%clk 00:07:50]}
{[%emt 00:00:02]} Nf4+ {[%clk 00:01:47]} {[%emt 00:00:22]} 94. Kc4 {[%clk
00:08:15]} {[%emt 00:00:05]} Kf3 {[%clk 00:01:55]} {[%emt 00:00:21]} 95. Be5
{[%clk 00:08:19]} {[%emt 00:00:27]} Ne6 {[%clk 00:01:04]} {[%emt 00:01:21]} 96.
Kd3 {[%clk 00:08:25]} {[%emt 00:00:24]} Nf4+ {[%clk 00:01:15]} {[%emt
00:00:19]} 97. Kd2 {[%clk 00:08:41]} {[%emt 00:00:14]} Nd5 {[%clk 00:00:56]}
{[%emt 00:00:48]} 98. Nxd5 {[%clk 00:08:39]} {[%emt 00:00:33]} Ke4 {[%clk
00:01:24]} {[%emt 00:00:01]} 99. Nc3+ {[%clk 00:09:05]} {[%emt 00:00:05]} Kxe5
{[%emt 00:00:42]} 1/2-1/2

[Event "Masters Tournament (MTO)"]
[Site "Biel, Switzerland"]
[Date "2026.07.15"]
[Round "3.35"]
[White "Carey, Michael"]
[Black "Lumsdon, Andrew"]
[Result "0-1"]
[TimeControl "100+30+30sec/move"]
[WhiteTitle "-"]
[BlackTitle "-"]
[WhiteFideId "30923760"]
[BlackFideId "1308840"]
[WhiteElo "1946"]
[BlackElo "2033"]

1. e4 {[%clk 01:38:20]} {[%emt 00:02:39]} d6 {[%clk 01:40:45]} {[%emt
00:00:16]} 2. d4 {[%clk 01:38:17]} {[%emt 00:00:33]} g6 {[%clk 01:41:08]}
{[%emt 00:00:07]} 3. Nc3 {[%clk 01:37:15]} {[%emt 00:01:32]} Bg7 {[%clk
01:41:30]} {[%emt 00:00:07]} 4. Be3 {[%clk 01:36:18]} {[%emt 00:01:27]} Nd7
{[%clk 01:41:52]} {[%emt 00:00:09]} 5. Qd2 {[%clk 01:35:43]} {[%emt 00:01:05]}
e5 {[%clk 01:41:50]} {[%emt 00:00:31]} 6. Nge2 {[%clk 01:30:48]} {[%emt
00:05:25]} c6 {[%clk 01:42:00]} {[%emt 00:00:20]} 7. f3 {[%clk 01:29:12]}
{[%emt 00:02:07]} Qe7 {[%clk 01:36:21]} {[%emt 00:06:08]} 8. h4 {[%clk
01:22:29]} {[%emt 00:07:14]} h5 {[%clk 01:35:50]} {[%emt 00:01:00]} 9. O-O-O
{[%clk 01:21:10]} {[%emt 00:01:50]} b5 {[%clk 01:35:10]} {[%emt 00:01:10]} 10.
d5 {[%clk 01:18:46]} {[%emt 00:02:55]} c5 {[%clk 01:35:18]} {[%emt 00:00:22]}
11. Nxb5 {[%clk 01:18:10]} {[%emt 00:01:05]} Nb6 {[%clk 01:35:43]} {[%emt
00:00:05]} 12. Nec3 {[%clk 01:15:26]} {[%emt 00:03:14]} a6 {[%clk 01:27:12]}
{[%emt 00:09:00]} 13. Na3 {[%clk 01:15:41]} {[%emt 00:00:15]} Rb8 {[%clk
01:27:30]} {[%emt 00:00:12]} 14. Nc4 {[%clk 01:09:33]} {[%emt 00:06:39]} Nxc4
{[%clk 01:26:15]} {[%emt 00:01:45]} 15. Bxc4 {[%clk 01:10:01]} {[%emt
00:00:03]} Qb7 {[%clk 01:26:36]} {[%emt 00:00:09]} 16. b3 {[%clk 01:09:14]}
{[%emt 00:01:16]} Bd7 {[%clk 01:25:48]} {[%emt 00:01:17]} 17. Qd3 {[%clk
01:02:10]} {[%emt 00:07:35]} Bb5 {[%clk 01:21:28]} {[%emt 00:04:49]} 18. a4
{[%clk 01:01:53]} {[%emt 00:00:48]} Bxc4 {[%clk 01:21:51]} {[%emt 00:00:07]} 19.
Qxc4 {[%clk 01:02:09]} {[%emt 00:00:14]} Ne7 {[%clk 01:22:12]} {[%emt
00:00:10]} 20. Kd2 {[%clk 00:52:12]} {[%emt 00:10:26]} Nc8 {[%clk 01:21:01]}
{[%emt 00:01:40]} 21. a5 {[%clk 00:51:40]} {[%emt 00:01:02]} Qa8 {[%clk
01:16:27]} {[%emt 00:05:04]} 22. Qa4+ {[%clk 00:46:34]} {[%emt 00:05:37]} Ke7
{[%clk 01:16:46]} {[%emt 00:00:10]} 23. Ra1 {[%clk 00:37:44]} {[%emt 00:09:20]}
Na7 {[%clk 01:16:07]} {[%emt 00:01:09]} 24. Qc4 {[%clk 00:34:40]} {[%emt
00:03:35]} Nb5 {[%clk 01:12:01]} {[%emt 00:04:36]} 25. Na4 {[%clk 00:32:45]}
{[%emt 00:02:25]} Nc7 {[%clk 01:10:55]} {[%emt 00:01:36]} 26. Nb6 {[%clk
00:27:32]} {[%emt 00:05:42]} Qb7 {[%clk 01:11:20]} {[%emt 00:00:05]} 27. Ke2
{[%clk 00:23:28]} {[%emt 00:04:34]} Na8 {[%clk 01:10:13]} {[%emt 00:01:37]} 28.
Bg5+ {[%clk 00:22:58]} {[%emt 00:01:01]} f6 {[%clk 01:09:41]} {[%emt 00:01:01]}
29. Bd2 {[%clk 00:23:07]} {[%emt 00:00:22]} f5 {[%clk 01:08:03]} {[%emt
00:02:08]} 30. Qd3 {[%clk 00:19:09]} {[%emt 00:04:29]} f4 {[%clk 01:05:06]}
{[%emt 00:03:26]} 31. Rhb1 {[%clk 00:17:20]} {[%emt 00:02:19]} Bf6 {[%clk
01:04:36]} {[%emt 00:00:59]} 32. Nc4 {[%clk 00:15:13]} {[%emt 00:02:38]} Bxh4
{[%clk 01:02:43]} {[%emt 00:02:24]} 33. b4 {[%clk 00:15:35]} {[%emt 00:00:08]}
Qa7 {[%clk 01:02:22]} {[%emt 00:00:50]} 34. Nb6 {[%clk 00:09:07]} {[%emt
00:06:58]} cxb4 {[%clk 00:59:30]} {[%emt 00:03:22]} 35. Bxb4 {[%clk 00:08:16]}
{[%emt 00:01:22]} Nxb6 {[%clk 00:59:11]} {[%emt 00:00:48]} 36. axb6 {[%clk
00:08:44]} {[%emt 00:00:02]} Rxb6 {[%clk 00:59:15]} {[%emt 00:00:26]} 37. Be1
{[%clk 00:05:12]} {[%emt 00:04:02]} Bxe1 {[%clk 00:57:38]} {[%emt 00:02:07]} 38.
Rxe1 {[%clk 00:05:18]} {[%emt 00:00:24]} Rc8 {[%clk 00:55:53]} {[%emt
00:02:14]} 39. Kf1 {[%clk 00:02:34]} {[%emt 00:03:15]} a5 {[%clk 00:54:12]}
{[%emt 00:02:11]} 40. Qd2 {[%clk 00:02:17]} {[%emt 00:00:47]} a4 {[%clk
00:54:39]} {[%emt 00:00:03]} 41. g3 {[%clk 00:01:57]} {[%emt 00:00:50]} Rb2
{[%clk 00:52:22]} {[%emt 00:02:46]} 42. Rec1 {[%clk 00:28:51]} {[%emt
00:03:37]} fxg3 {[%clk 01:22:37]} {[%emt 00:00:14]} 43. Qg5+ {[%clk 00:27:50]}
{[%emt 00:01:32]} Kf7 {[%clk 01:22:57]} {[%emt 00:00:09]} 44. Qxg3 {[%clk
00:27:42]} {[%emt 00:00:39]} Rcxc2 {[%clk 01:23:02]} {[%emt 00:00:25]} 45. Rxc2
{[%clk 00:27:00]} {[%emt 00:01:11]} Rxc2 {[%clk 01:23:24]} {[%emt 00:00:09]} 46.
f4 {[%clk 00:24:08]} {[%emt 00:03:21]} Qd4 {[%clk 01:23:01]} {[%emt 00:00:53]}
47. Re1 {[%clk 00:23:51]} {[%emt 00:00:46]} exf4 {[%clk 01:23:02]} {[%emt
00:00:31]} 48. Qxf4+ {[%clk 00:23:25]} {[%emt 00:00:56]} Qf6 {[%clk 01:23:23]}
{[%emt 00:00:08]} 49. Qxf6+ {[%clk 00:23:23]} {[%emt 00:00:33]} Kxf6 {[%clk
01:23:45]} {[%emt 00:00:09]} 0-1

[Event "Masters Tournament (MTO)"]
[Site "Biel, Switzerland"]
[Date "2026.07.15"]
[Round "3.36"]
[White "Aryan, Goyal"]
[Black "Hajduk, Tomasz"]
[Result "1-0"]
[TimeControl "100+30+30sec/move"]
[WhiteTitle "-"]
[BlackTitle "-"]
[WhiteFideId "366108825"]
[BlackFideId "21811415"]
[WhiteElo "2029"]
[BlackElo "1921"]

1. e4 {[%clk 01:40:45]} {[%emt 00:00:14]} c5 {[%clk 01:40:57]} {[%emt
00:00:05]} 2. Nf3 {[%clk 01:41:03]} {[%emt 00:00:11]} d6 {[%clk 01:41:23]}
{[%emt 00:00:05]} 3. d4 {[%clk 01:41:18]} {[%emt 00:00:15]} cxd4 {[%clk
01:41:48]} {[%emt 00:00:05]} 4. Nxd4 {[%clk 01:41:43]} {[%emt 00:00:04]} Nf6
{[%clk 01:42:17]} {[%emt 00:00:02]} 5. Nc3 {[%clk 01:42:12]} {[%emt 00:00:01]}
a6 {[%clk 01:42:43]} {[%emt 00:00:05]} 6. f4 {[%clk 01:42:00]} {[%emt
00:00:42]} e5 {[%clk 01:42:37]} {[%emt 00:00:35]} 7. Nb3 {[%clk 01:42:08]}
{[%emt 00:00:22]} Nbd7 {[%clk 01:41:43]} {[%emt 00:01:25]} 8. g4 {[%clk
01:39:49]} {[%emt 00:02:48]} b5 {[%clk 01:37:38]} {[%emt 00:04:35]} 9. g5
{[%clk 01:30:17]} {[%emt 00:10:02]} b4 {[%clk 01:37:52]} {[%emt 00:00:16]} 10.
Na4 {[%clk 01:25:55]} {[%emt 00:04:52]} Ng8 {[%clk 01:31:17]} {[%emt 00:07:06]}
11. Qd5 {[%clk 01:02:59]} {[%emt 00:23:25]} Rb8 {[%clk 01:30:04]} {[%emt
00:01:43]} 12. Bc4 {[%clk 00:59:45]} {[%emt 00:03:43]} Qe7 {[%clk 01:30:10]}
{[%emt 00:00:24]} 13. Na5 {[%clk 00:59:21]} {[%emt 00:00:55]} Qe6 {[%clk
01:21:23]} {[%emt 00:09:17]} 14. Qxe6+ {[%clk 00:53:07]} {[%emt 00:06:44]} fxe6
{[%clk 01:21:48]} {[%emt 00:00:05]} 15. Nc6 {[%clk 00:51:31]} {[%emt 00:02:05]}
Ra8 {[%clk 01:15:20]} {[%emt 00:06:58]} 16. Bxe6 {[%clk 00:48:35]} {[%emt
00:03:27]} a5 {[%clk 01:11:22]} {[%emt 00:04:28]} 17. Bd5 {[%clk 00:42:24]}
{[%emt 00:06:40]} Ra6 {[%clk 01:11:30]} {[%emt 00:00:23]} 18. fxe5 {[%clk
00:36:33]} {[%emt 00:06:21]} Nxe5 {[%clk 01:11:17]} {[%emt 00:00:43]} 19. Nxe5
{[%clk 00:36:13]} {[%emt 00:00:50]} dxe5 {[%clk 01:11:42]} {[%emt 00:00:05]} 20.
Be3 {[%clk 00:35:55]} {[%emt 00:00:44]} Ne7 {[%clk 01:08:46]} {[%emt 00:03:30]}
21. Bc4 {[%clk 00:36:07]} {[%emt 00:00:18]} Rd6 {[%clk 01:07:34]} {[%emt
00:01:42]} 22. Bc5 {[%clk 00:23:44]} {[%emt 00:12:53]} Nc6 {[%clk 01:06:39]}
{[%emt 00:01:25]} 23. Bxd6 {[%clk 00:22:51]} {[%emt 00:01:23]} Bxd6 {[%clk
01:07:04]} {[%emt 00:00:05]} 24. Nb6 {[%clk 00:22:55]} {[%emt 00:00:25]} Bg4
{[%clk 01:05:31]} {[%emt 00:02:03]} 25. Bb5 {[%clk 00:22:57]} {[%emt 00:00:29]}
Bd7 {[%clk 01:04:48]} {[%emt 00:01:13]} 26. O-O-O {[%clk 00:22:35]} {[%emt
00:00:52]} Ke7 {[%clk 01:04:43]} {[%emt 00:00:35]} 27. Nxd7 {[%clk 00:22:31]}
{[%emt 00:00:33]} Kxd7 {[%clk 01:05:08]} {[%emt 00:00:05]} 28. Rd5 {[%clk
00:22:33]} {[%emt 00:00:29]} Kc7 {[%clk 01:05:20]} {[%emt 00:00:18]} 29. Bxc6
{[%clk 00:22:50]} {[%emt 00:00:13]} Kxc6 {[%clk 01:05:35]} {[%emt 00:00:15]} 30.
Rhd1 {[%clk 00:22:09]} {[%emt 00:01:10]} Bc7 {[%clk 01:05:43]} {[%emt
00:00:22]} 31. Rd7 {[%clk 00:22:22]} {[%emt 00:00:17]} g6 {[%clk 01:05:55]}
{[%emt 00:00:19]} 32. Rf7 {[%clk 00:22:41]} {[%emt 00:00:10]} Bd8 {[%clk
01:05:39]} {[%emt 00:00:47]} 33. h4 {[%clk 00:22:40]} {[%emt 00:00:31]} h6
{[%clk 01:06:00]} {[%emt 00:00:09]} 34. Rg7 {[%clk 00:22:53]} {[%emt 00:00:16]}
hxg5 {[%clk 01:06:11]} {[%emt 00:00:19]} 35. Rxg6+ {[%clk 00:23:18]} {[%emt
00:00:06]} Kc5 {[%clk 01:06:34]} {[%emt 00:00:06]} 36. Rd5+ {[%clk 00:23:14]}
{[%emt 00:00:33]} Kc4 {[%clk 01:06:56]} {[%emt 00:00:10]} 37. Rc6# {[%clk
00:23:40]} {[%emt 00:00:04]} 1-0